Workbook

Sheet 1
A1: 内蒙古乃蛮人力资源管理有限公司公开招聘业务人员总成绩单（岗位1）
A2: 姓名 | B2: 准考证号 | C2: 身份证号 | D2: 报考岗位 | E2: 笔试成绩 | F2: 笔试成绩*60% | G2: 面试成绩 | H2: 面试成绩*40% | I2: 加分 | J2: 总成绩 | K2: 名次
A3: 周海燕 | B3: 10126010714 | C3: 15232619841102712X | D3: 1 | E3: 76.25 | F3: 45.75 | G3: 85.40 | H3: 34.16 | I3: 3 | J3: 82.91 | K3: 1
A4: 齐美华 | B4: 10126010915 | C4: 152326199202280043 | D4: 1 | E4: 74.55 | F4: 44.73 | G4: 86.90 | H4: 34.76 | I4: 3 | J4: 82.49 | K4: 2
A5: 路海燕 | B5: 10126010511 | C5: 152326198310092045 | D5: 1 | E5: 71.65 | F5: 42.99 | G5: 81.4 | H5: 32.56 | I5: 3 | J5: 78.55 | K5: 3
A6: 包塔那 | B6: 10126011009 | C6: 152326198510076621 | D6: 1 | E6: 72.75 | F6: 43.65 | G6: 77.00 | H6: 30.80 | I6: 3 | J6: 77.45 | K6: 4
A7: 白晓乐 | B7: 10126010328 | C7: 152326198502093325 | D7: 1 | E7: 73.70 | F7: 44.22 | G7: 82.00 | H7: 32.80 | I7: 0 | J7: 77.02 | K7: 5
A8: 刘海艳 | B8: 10126010523 | C8: 152326199106183323 | D8: 1 | E8: 65.25 | F8: 39.15 | G8: 84.8 | H8: 33.92 | I8: 3 | J8: 76.07 | K8: 6
A9: 左仕岩 | B9: 10126010724 | C9: 152326198812012587 | D9: 1 | E9: 68.75 | F9: 41.25 | G9: 78.20 | H9: 31.28 | I9: 3 | J9: 75.53 | K9: 7
A10: 陶磊 | B10: 10126010312 | C10: 152326198309271193 | D10: 1 | E10: 66.85 | F10: 40.11 | G10: 80.80 | H10: 32.32 | I10: 3 | J10: 75.43 | K10: 8
A11: 刘莫日根朝格图 | B11: 10126011607 | C11: 152326198506114576 | D11: 1 | E11: 66.05 | F11: 39.63 | G11: 81.4 | H11: 32.56 | I11: 3 | J11: 75.19 | K11: 9
A12: 庞未爽 | B12: 10126011202 | C12: 152326199204010012 | D12: 1 | E12: 70.5 | F12: 42.30 | G12: 81.5 | H12: 32.60 | I12: 0 | J12: 74.90 | K12: 10
A13: 康浩威 | B13: 10126010122 | C13: 152326199311251719 | D13: 1 | E13: 66.90 | F13: 40.14 | G13: 78.60 | H13: 31.44 | I13: 3 | J13: 74.58 | K13: 11
A14: 晓燕 | B14: 20126011726 | C14: 152325198308221024 | D14: 1 | E14: 68.80 | F14: 41.28 | G14: 82.40 | H14: 32.96 | I14: 0 | J14: 74.24 | K14: 12
A15: 薛晓雷 | B15: 10126010130 | C15: 152326199006062823 | D15: 1 | E15: 65.65 | F15: 39.39 | G15: 86.60 | H15: 34.64 | I15: 0 | J15: 74.03 | K15: 13
A16: 史彩奕 | B16: 10126010820 | C16: 152326199407085321 | D16: 1 | E16: 70.00 | F16: 42.00 | G16: 80.00 | H16: 32.00 | I16: 0 | J16: 74.00 | K16: 14
A17: 杨海玲 | B17: 10126010530 | C17: 152326198701101746 | D17: 1 | E17: 60.55 | F17: 36.33 | G17: 86.5 | H17: 34.60 | I17: 3 | J17: 73.93 | K17: 15
A18: 张春玲 | B18: 10126010428 | C18: 15232619870629046X | D18: 1 | E18: 67.25 | F18: 40.35 | G18: 82.8 | H18: 33.12 | I18: 0 | J18: 73.47 | K18: 16
A19: 陈苏布勒 | B19: 20126011829 | C19: 15232619910726001X | D19: 1 | E19: 62.05 | F19: 37.23 | G19: 81.40 | H19: 32.56 | I19: 3 | J19: 72.79 | K19: 17
A20: 谭宇媛 | B20: 10126010120 | C20: 152326199111052280 | D20: 1 | E20: 64.40 | F20: 38.64 | G20: 84.80 | H20: 33.92 | I20: 0 | J20: 72.56 | K20: 18
A21: 梁高娃 | B21: 20126012010 | C21: 152326198601222823 | D21: 1 | E21: 58.65 | F21: 35.19 | G21: 85.60 | H21: 34.24 | I21: 3 | J21: 72.43 | K21: 19
A22: 张艳利 | B22: 10126010823 | C22: 152326198506296621 | D22: 1 | E22: 61.50 | F22: 36.90 | G22: 80.60 | H22: 32.24 | I22: 3 | J22: 72.14 | K22: 20
A23: 王晓雪 | B23: 10126010623 | C23: 152326199202260683 | D23: 1 | E23: 60.5 | F23: 36.30 | G23: 79.8 | H23: 31.92 | I23: 3 | J23: 71.22 | K23: 21
A24: 闫朝旭 | B24: 10126010525 | C24: 152326199104110016 | D24: 1 | E24: 59.05 | F24: 35.43 | G24: 81.8 | H24: 32.72 | I24: 3 | J24: 71.15 | K24: 22
A25: 李雯 | B25: 10126010529 | C25: 152326199003100046 | D25: 1 | E25: 60.7 | F25: 36.42 | G25: 78.8 | H25: 31.52 | I25: 3 | J25: 70.94 | K25: 23
A26: 韩红岩 | B26: 10126010228 | C26: 152326198910040038 | D26: 1 | E26: 57.9 | F26: 34.74 | G26: 82.8 | H26: 33.12 | I26: 3 | J26: 70.86 | K26: 24
A27: 宋丽娟 | B27: 10126010102 | C27: 152326199001143827 | D27: 1 | E27: 61.75 | F27: 37.05 | G27: 83.80 | H27: 33.52 | I27: 0 | J27: 70.57 | K27: 25
A28: 胡广新 | B28: 10126010905 | C28: 152326198605170020 | D28: 1 | E28: 59.50 | F28: 35.70 | G28: 79.40 | H28: 31.76 | I28: 3 | J28: 70.46 | K28: 26
A29: 王秀磊 | B29: 10126010918 | C29: 152326198807300528 | D29: 1 | E29: 56.00 | F29: 33.60 | G29: 84.40 | H29: 33.76 | I29: 3 | J29: 70.36 | K29: 27
A30: 杜蕾 | B30: 10126010213 | C30: 152326199504176620 | D30: 1 | E30: 64.9 | F30: 38.94 | G30: 77.6 | H30: 31.04 | I30: 0 | J30: 69.98 | K30: 28
A31: 刘安迪 | B31: 10126010203 | C31: 152326199401163819 | D31: 1 | E31: 61.7 | F31: 37.02 | G31: 82.4 | H31: 32.96 | I31: 0 | J31: 69.98 | K31: 28
A32: 孙飞飞 | B32: 10126010129 | C32: 152326198601226621 | D32: 1 | E32: 57.35 | F32: 34.41 | G32: 81.40 | H32: 32.56 | I32: 3 | J32: 69.97 | K32: 30
A33: 张玉萍 | B33: 10126010109 | C33: 152326199301052302 | D33: 1 | E33: 61.15 | F33: 36.69 | G33: 83.00 | H33: 33.20 | I33: 0 | J33: 69.89 | K33: 31
A34: 吉木斯 | B34: 10126010707 | C34: 152326198209061180 | D34: 1 | E34: 55.65 | F34: 33.39 | G34: 82.60 | H34: 33.04 | I34: 3 | J34: 69.43 | K34: 32
A35: 刘永林 | B35: 10126011513 | C35: 152326198910217374 | D35: 1 | E35: 53.9 | F35: 32.34 | G35: 84.7 | H35: 33.88 | I35: 3 | J35: 69.22 | K35: 33
A36: 赵艳君 | B36: 10126010608 | C36: 152326198812185081 | D36: 1 | E36: 60.2 | F36: 36.12 | G36: 82.1 | H36: 32.84 | I36: 0 | J36: 68.96 | K36: 34
A37: 王大光 | B37: 10126010116 | C37: 152326199210054812 | D37: 1 | E37: 62.60 | F37: 37.56 | G37: 78.00 | H37: 31.20 | I37: 0 | J37: 68.76 | K37: 35
A38: 刘彩凤 | B38: 10126011017 | C38: 152326199111065620 | D38: 1 | E38: 58.65 | F38: 35.19 | G38: 83.80 | H38: 33.52 | I38: 0 | J38: 68.71 | K38: 36
A39: 李海利 | B39: 10126010926 | C39: 152326198210284277 | D39: 1 | E39: 57.75 | F39: 34.65 | G39: 77.60 | H39: 31.04 | I39: 3 | J39: 68.69 | K39: 37
A40: 周庆艳 | B40: 10126010828 | C40: 152326199301085323 | D40: 1 | E40: 56.80 | F40: 34.08 | G40: 86.40 | H40: 34.56 | I40: 0 | J40: 68.64 | K40: 38
A41: 郑苗苗 | B41: 10126010816 | C41: 152326199202282305 | D41: 1 | E41: 53.70 | F41: 32.22 | G41: 83.50 | H41: 33.40 | I41: 3 | J41: 68.62 | K41: 39
A42: 高苏亚拉图 | B42: 10126011225 | C42: 152326198703144299 | D42: 1 | E42: 55.3 | F42: 33.18 | G42: 81 | H42: 32.40 | I42: 3 | J42: 68.58 | K42: 40
A43: 陈欣悦 | B43: 10126010728 | C43: 152326199412245887 | D43: 1 | E43: 60.40 | F43: 36.24 | G43: 80.20 | H43: 32.08 | I43: 0 | J43: 68.32 | K43: 41
A44: 孙虎 | B44: 10126010319 | C44: 152326199202196116 | D44: 1 | E44: 52.20 | F44: 31.32 | G44: 84.80 | H44: 33.92 | I44: 3 | J44: 68.24 | K44: 42
A45: 高群 | B45: 10126010219 | C45: 230881198705211029 | D45: 1 | E45: 57.35 | F45: 34.41 | G45: 84.4 | H45: 33.76 | I45: 0 | J45: 68.17 | K45: 43
A46: 席达拉胡 | B46: 20126012205 | C46: 152326199002185084 | D46: 1 | E46: 53.65 | F46: 32.19 | G46: 82.00 | H46: 32.80 | I46: 3 | J46: 67.99 | K46: 44
A47: 白妍 | B47: 10126010908 | C47: 152326199402011227 | D47: 1 | E47: 54.60 | F47: 32.76 | G47: 80.40 | H47: 32.16 | I47: 3 | J47: 67.92 | K47: 45
A48: 王海玲 | B48: 10126010627 | C48: 152326199202164587 | D48: 1 | E48: 56.05 | F48: 33.63 | G48: 85.6 | H48: 34.24 | I48: 0 | J48: 67.87 | K48: 46
A49: 索良媛 | B49: 10126010320 | C49: 152326199205290028 | D49: 1 | E49: 56.00 | F49: 33.60 | G49: 85.60 | H49: 34.24 | I49: 0 | J49: 67.84 | K49: 47
A50: 吴铁城 | B50: 10126010423 | C50: 152326198310063076 | D50: 1 | E50: 58.8 | F50: 35.28 | G50: 72.6 | H50: 29.04 | I50: 3 | J50: 67.32 | K50: 48
A51: 李凤林 | B51: 10126010303 | C51: 152326198601022282 | D51: 1 | E51: 52.65 | F51: 31.59 | G51: 81.80 | H51: 32.72 | I51: 3 | J51: 67.31 | K51: 49
A52: 罗洪雨 | B52: 10126011219 | C52: 152326199508060422 | D52: 1 | E52: 57.45 | F52: 34.47 | G52: 82 | H52: 32.80 | I52: 0 | J52: 67.27 | K52: 50

Sheet 2
A1: 内蒙古乃蛮人力资源管理有限公司公开招聘业务人员总成绩单（岗位2）
A2: 姓名 | B2: 准考证号 | C2: 身份证号 | D2: 报考岗位 | E2: 笔试成绩 | F2: 笔试成绩（60%） | G2: 面试成绩 | H2: 面试成绩（40%） | I2: 加分 | J2: 总成绩 | K2: 名次
A3: 卫双双 | B3: 10126011020 | C3: 152326199111015324 | D3: 2 | E3: 62.2 | F3: =E3*0.6 -> 37.32 | G3: 84.28 | H3: =G3*0.4 -> 33.71 | I3: 3 | J3: =F3+H3+I3 -> 74.03 | K3: 1
A4: 范丽红 | B4: 10126011030 | C4: 15232619920105508X | D4: 2 | E4: 64.6 | F4: 38.76 | G4: 86.4 | H4: 34.56 | J4: 73.32 | K4: 2
A5: 吴灵灵 | B5: 10126011029 | C5: 152326199012183322 | D5: 2 | E5: 57.65 | F5: 34.59 | G5: 84.32 | H5: 33.73 | I5: 3 | J5: 71.32 | K5: 3
A6: 李国静 | B6: 10126011103 | C6: 152326199103084282 | D6: 2 | E6: 56.45 | F6: 33.87 | G6: 82.4 | H6: 32.96 | J6: 66.83 | K6: 4
A7: 高欢 | B7: 10126011028 | C7: 152326199408060046 | D7: 2 | E7: 48.35 | F7: 29.01 | G7: 85.7 | H7: 34.28 | I7: 3 | J7: 66.29 | K7: 5
A8: 吴其乐木格 | B8: 10126011025 | C8: 152326198809073089 | D8: 2 | E8: 48.9 | F8: 29.34 | G8: 80.46 | H8: 32.18 | I8: 3 | J8: 64.52 | K8: 6

Sheet 3
A1: 内蒙古乃蛮人力资源管理有限公司公开招聘业务人员总成绩单（岗位3）
A2: 姓名 | B2: 准考证号 | C2: 身份证号 | D2: 报考岗位 | E2: 笔试成绩 | F2: 笔试成绩（60%） | G2: 面试成绩 | H2: 面试成绩（40%） | I2: 加分 | J2: 总成绩 | K2: 名次
A3: 张寒玉 | B3: 10126011107 | C3: 152326199203100024 | D3: 3 | E3: 61.3 | F3: =E3*0.6 -> 36.78 | G3: 84 | H3: =G3*0.4 -> 33.60 | I3: 3 | J3: =F3+H3+I3 -> 73.38 | K3: 1
A4: 吴玉宽 | B4: 10126011106 | C4: 15232619880112307X | D4: 3 | E4: 60.85 | F4: 36.51 | G4: 80.4 | H4: 32.16 | I4: 3 | J4: 71.67 | K4: 2
A5: 赵倩倩 | B5: 10126011109 | C5: 152326199203050047 | D5: 3 | E5: 61.1 | F5: 36.66 | G5: 87.2 | H5: 34.88 | J5: 71.54 | K5: 3
A6: 王静 | B6: 10126011116 | C6: 152326199604011188 | D6: 3 | E6: 58 | F6: 34.80 | G6: 82.4 | H6: 32.96 | I6: 3 | J6: 70.76 | K6: 4

Sheet 6
A1: 内蒙古乃蛮人力资源管理有限公司公开招聘业务人员总成绩单（岗位6）
A2: 姓名 | B2: 准考证号 | C2: 身份证号 | D2: 报考岗位 | E2: 笔试成绩 | F2: 笔试成绩（60%） | G2: 面试成绩 | H2: 面试成绩（40%） | I2: 加分 | J2: 总成绩 | K2: 名次
A3: 斯日木恩 | B3: 20126011815 | C3: 152326199111167627 | D3: 6 | E3: 65.85 | F3: =E3*0.6 -> 39.51 | G3: 86.8 | H3: =G3*0.4 -> 34.72 | I3: 3 | J3: =I3+H3+F3 -> 77.23 | K3: 1
A4: 刘伟泽 | B4: 10126011126 | C4: 152326199010091715 | D4: 6 | E4: 64.7 | F4: 38.82 | G4: 84.86 | H4: 33.94 | J4: 72.76 | K4: 2
A5: 鄂萨仁其木格 | B5: 10126011124 | C5: 152326198705044603 | D5: 6 | E5: 59.2 | F5: 35.52 | G5: 79.56 | H5: 31.82 | I5: 3 | J5: 70.34 | K5: 3
A6: 宝红玲 | B6: 20126011802 | C6: 152326198610055625 | D6: 6 | E6: 57.65 | F6: 34.59 | G6: 81 | H6: 32.40 | I6: 3 | J6: 69.99 | K6: 4
A7: 李盟 | B7: 10126011123 | C7: 152326199512094086 | D7: 6 | E7: 62.4 | F7: 37.44 | G7: 79.6 | H7: 31.84 | J7: 69.28 | K7: 5
A8: 刘杨 | B8: 10126011120 | C8: 150525199005080029 | D8: 6 | E8: 55.45 | F8: 33.27 | G8: 82.3 | H8: 32.92 | I8: 3 | J8: 69.19 | K8: 6
A9: 陈德力根 | B9: 20126011821 | C9: 152326198503214571 | D9: 6 | E9: 54.25 | F9: 32.55 | G9: 79.3 | H9: 31.72 | I9: 3 | J9: 67.27 | K9: 7

Sheet 7
A1: 内蒙古乃蛮人力资源管理有限公司公开招聘业务人员总成绩单（岗位7）
A2: 姓名 | B2: 准考证号 | C2: 身份证号 | D2: 报考岗位 | E2: 笔试成绩 | F2: 笔试成绩（60%） | G2: 面试成绩 | H2: 面试成绩（40%） | I2: 加分 | J2: 总成绩 | K2: 名次
A3: 王伍冬 | B3: 10126011406 | C3: 152326199212147393 | D3: 7 | E3: 53.35 | F3: =E3*0.6 -> 32.01 | G3: 83.66 | H3: =G3*0.4 -> 33.46 | J3: =H3+F3 -> 65.47 | K3: 1
A4: 候多蓝 | B4: 10126011411 | C4: 210921199205254639 | D4: 7 | E4: 48.65 | F4: =E4*0.6 -> 29.19 | G4: 84.54 | H4: =G4*0.4 -> 33.82 | J4: =H4+F4 -> 63.01 | K4: 2

Sheet 10
A1: 内蒙古乃蛮人力资源管理有限公司公开招聘业务人员总成绩单（岗位10）
A2: 姓名 | B2: 准考证号 | C2: 身份证号 | D2: 报考岗位 | E2: 笔试成绩 | F2: 笔试成绩（60%） | G2: 面试成绩 | H2: 面试成绩（40%） | I2: 加分 | J2: 总成绩 | K2: 名次
A3: 张友涛 | B3: 10126011508 | C3: 152326199603250021 | D3: 10 | E3: 52.45 | F3: =E3*0.6 -> 31.47 | G3: 85.60 | H3: =G3*0.4 -> 34.24 | J3: =F3+H3 -> 65.71 | K3: 1

Sheet 13
A1: 内蒙古乃蛮人力资源管理有限公司公开招聘业务人员总成绩单（岗位13）
A2: 姓名 | B2: 准考证号 | C2: 身份证号 | D2: 报考岗位 | E2: 笔试成绩 | F2: 笔试成绩（60%） | G2: 面试成绩 | H2: 面试成绩（40%） | I2: 加分 | J2: 总成绩 | K2: 名次
A3: 王琴丽 | B3: 10126011426 | C3: 152323198702074648 | D3: 13 | E3: 70.05 | F3: =E3*0.6 -> 42.03 | G3: 80.20 | H3: =G3*0.4 -> 32.08 | I3: 3.00 | J3: =I3+H3+F3 -> 77.11 | K3: 1
A4: 吴黎明 | B4: 10126011130 | C4: 152326198609260015 | D4: 13 | E4: 67.25 | F4: 40.35 | G4: 84.80 | H4: 33.92 | J4: 74.27 | K4: 2
A5: 刘宏伟 | B5: 10126011417 | C5: 152326199502050012 | D5: 13 | E5: 64.65 | F5: 38.79 | G5: 87.00 | H5: 34.80 | J5: 73.59 | K5: 3
A6: 马线达木尼 | B6: 20126011814 | C6: 152326198308062816 | D6: 13 | E6: 64.05 | F6: 38.43 | G6: 79.52 | H6: 31.81 | I6: 3.00 | J6: 73.24 | K6: 4
A7: 郭景栋 | B7: 10126011427 | C7: 152326198812250031 | D7: 13 | E7: 63.25 | F7: 37.95 | G7: 85.80 | H7: 34.32 | J7: 72.27 | K7: 5
A8: 旭日 | B8: 10126011415 | C8: 152326199205220046 | D8: 13 | E8: 58.90 | F8: 35.34 | G8: 82.50 | H8: 33.00 | I8: 3.00 | J8: 71.34 | K8: 6
A9: 朱家禾 | B9: 10126011129 | C9: 152326199203130020 | D9: 13 | E9: 56.25 | F9: 33.75 | G9: 84.20 | H9: 33.68 | I9: 3.00 | J9: 70.43 | K9: 7
A10: 付崇川 | B10: 10126011424 | C10: 152326198809055075 | D10: 13 | E10: 61.40 | F10: 36.84 | G10: 80.00 | H10: 32.00 | J10: 68.84 | K10: 8
A11: 郑美琪 | B11: 10126011423 | C11: 152326199308240066 | D11: 13 | E11: 57.55 | F11: 34.53 | G11: 84.12 | H11: 33.65 | J11: 68.18 | K11: 9

Sheet 14
A1: 内蒙古乃蛮人力资源管理有限公司公开招聘业务人员总成绩单（岗位14）
A2: 姓名 | B2: 准考证号 | C2: 身份证号 | D2: 报考岗位 | E2: 笔试成绩 | F2: 笔试成绩（60%） | G2: 面试成绩 | H2: 面试成绩（40%） | I2: 加分 | J2: 总成绩 | K2: 名次
A3: 王晓萍 | B3: 10126011314 | C3: 152326199311152286 | D3: 14 | E3: 62.05 | F3: =E3*0.6 -> 37.23 | G3: 83.22 | H3: =G3*0.4 -> 33.29 | J3: =F3+H3+I3 -> 70.52 | K3: 1
A4: 龚宝亮 | B4: 10126011309 | C4: 15232619860616460X | D4: 14 | E4: 52.7 | F4: 31.62 | G4: 83.72 | H4: 33.49 | I4: 3 | J4: 68.11 | K4: 2
A5: 王斯琴格日乐 | B5: 10126011307 | C5: 15232619910127762X | D5: 14 | E5: 52.65 | F5: 31.59 | G5: 83.56 | H5: 33.42 | I5: 3 | J5: 68.01 | K5: 3
A6: 丛亚娟 | B6: 10126011312 | C6: 152326198705040047 | D6: 14 | E6: 55.55 | F6: 33.33 | G6: 82.70 | H6: 33.08 | J6: 66.41 | K6: 4
A7: 金晶晶 | B7: 10126011315 | C7: 152326199409263320 | D7: 14 | E7: 51.75 | F7: 31.05 | G7: 80.00 | H7: 32.00 | I7: 3 | J7: 66.05 | K7: 5
A8: 鲁萌萌 | B8: 10126011305 | C8: 152326199308070028 | D8: 14 | E8: 50.85 | F8: 30.51 | G8: 86.40 | H8: 34.56 | J8: 65.07 | K8: 6
A9: 白山丹 | B9: 20126011812 | C9: 15232619961101562X | D9: 14 | E9: 46.05 | F9: 27.63 | G9: 83.98 | H9: 33.59 | I9: 3 | J9: 64.22 | K9: 7
A10: 王汉宇 | B10: 10126011313 | C10: 15232619941112205X | D10: 14 | E10: 48.2 | F10: 28.92 | G10: 87.40 | H10: 34.96 | J10: 63.88 | K10: 8
A11: 王金星 | B11: 10126011308 | C11: 152326199311030043 | D11: 14 | E11: 48.4 | F11: 29.04 | G11: 87.00 | H11: 34.80 | J11: 63.84 | K11: 9

Sheet 15
A1: 内蒙古乃蛮人力资源管理有限公司公开招聘业务人员总成绩单（岗位15）
A2: 姓名 | B2: 准考证号 | C2: 身份证号 | D2: 报考岗位 | E2: 笔试成绩 | F2: 笔试成绩（60%） | G2: 面试成绩 | H2: 面试成绩（40%） | I2: 加分 | J2: 总成绩 | K2: 名次
A3: 董玉芳 | B3: 10126010305 | C3: 152322198410173525 | D3: 15 | E3: 79.45 | F3: =E3*0.6 -> 47.67 | G3: 85 | H3: =G3*0.4 -> 34.00 | I3: 3 | J3: =I3+H3+F3 -> 84.67 | K3: 1
A4: 高红梅 | B4: 20126011707 | C4: 152326198601205089 | D4: 15 | E4: 49.95 | F4: 29.97 | G4: 80.94 | H4: 32.38 | I4: 3 | J4: 65.35 | K4: 2
A5: 邰海英 | B5: 20126011806 | C5: 152326199205083328 | D5: 15 | E5: 45.9 | F5: 27.54 | G5: 80.54 | H5: 32.22 | I5: 3 | J5: 62.76 | K5: 3

Sheet 16
A1: 内蒙古乃蛮人力资源管理有限公司公开招聘业务人员总成绩单（岗位16）
A2: 姓名 | B2: 准考证号 | C2: 身份证号 | D2: 报考岗位 | E2: 笔试成绩 | F2: 笔试成绩（60%） | G2: 面试成绩 | H2: 面试成绩（40%） | I2: 加分 | J2: 总成绩 | K2: 名次
A3: 张树鹏 | B3: 10126011408 | C3: 152326199012090038 | D3: 16 | E3: 55.8 | F3: =E3*0.6 -> 33.48 | G3: 83.26 | H3: =G3*0.4 -> 33.30 | I3: 3 | J3: =I3+H3+F3 -> 69.78 | K3: 1
A4: 陈金星 | B4: 10126011412 | C4: 152326198910274571 | D4: 16 | E4: 56.25 | F4: 33.75 | G4: 80.9 | H4: 32.36 | I4: 3 | J4: 69.11 | K4: 2

Sheet 17
A1: 内蒙古乃蛮人力资源管理有限公司公开招聘业务人员总成绩单（岗位17）
A2: 姓名 | B2: 准考证号 | C2: 身份证号 | D2: 报考岗位 | E2: 笔试成绩 | F2: 笔试成绩（60%） | G2: 面试成绩 | H2: 笔试成绩（40%） | I2: 加分 | J2: 总成绩 | K2: 名次
A3: 吕国飞 | B3: 10126011301 | C3: 152326199410144273 | D3: 17 | E3: 57.05 | F3: =E3*0.6 -> 34.23 | G3: 82.18 | H3: =G3*0.4 -> 32.87 | J3: =I3+H3+F3 -> 67.10
A4: 高晗 | B4: 10126011303 | C4: 152326199308150044 | D4: 17 | E4: 45.5 | F4: 27.30 | G4: 86 | H4: 34.40 | J4: 61.70

Sheet 19
A1: 内蒙古乃蛮人力资源管理有限公司公开招聘业务人员总成绩单（岗位19）
A2: 姓名 | B2: 准考证号 | C2: 身份证号 | D2: 报考岗位 | E2: 笔试成绩 | F2: 笔试成绩（60%） | G2: 面试成绩 | H2: 面试成绩（40%） | I2: 加分 | J2: 总成绩 | K2: 名次
A3: 侯明 | B3: 10126011327 | C3: 152326199001143579 | D3: 19 | E3: 62.5 | F3: =E3*0.6 -> 37.50 | G3: 85.64 | H3: =G3*0.4 -> 34.26 | I3: 3 | J3: =I3+H3+F3 -> 74.76 | K3: 1
A4: 盛娜 | B4: 10126011328 | C4: 152326199510020040 | D4: 19 | E4: 64.9 | F4: 38.94 | G4: 81.88 | H4: 32.75 | J4: 71.69 | K4: 2
A5: 李哈斯尔等 | B5: 20126011710 | C5: 152326198302023314 | D5: 19 | E5: 57.55 | F5: 34.53 | G5: 81.2 | H5: 32.48 | I5: 3 | J5: 70.01 | K5: 3
A6: 王荣吉 | B6: 10126011527 | C6: 152326198905122012 | D6: 19 | E6: 53.65 | F6: 32.19 | G6: 82.72 | H6: 33.09 | J6: 65.28 | K6: 4
A7: 宝彩亮 | B7: 10126011324 | C7: 152326198809150048 | D7: 19 | E7: 46.15 | F7: 27.69 | G7: 84.02 | H7: 33.61 | I7: 3 | J7: 64.30 | K7: 5

Sheet 20
A1: 内蒙古乃蛮人力资源管理有限公司公开招聘业务人员总成绩单（岗位20）
A2: 姓名 | B2: 准考证号 | C2: 身份证号 | D2: 报考岗位 | E2: 笔试成绩 | F2: 笔试成绩（60%） | G2: 面试成绩 | H2: 面试成绩（40%） | I2: 加分 | J2: 总成绩 | K2: 名次
A3: 散旦 | B3: 20126011702 | C3: 152326198610053320 | D3: 20 | E3: 50.4 | F3: =E3*0.6 -> 30.24 | G3: 82.58 | H3: =G3*0.4 -> 33.03 | I3: 3 | J3: =I3+H3+F3 -> 66.27 | K3: 1
